fUSD/lending_fUSD_20240812
["ID","MTS","AMOUNT","RATE_DAILY","PERIOD"]
[334681268,1723468253946,-10000.0,0.00011,2]
[334681269,1723468253955,-3992.930337,0.00011,2]
[334681270,1723468253965,-10000.0,0.00011,2]
[334681271,1723468253975,-3992.930337,0.00011,2]
[334681272,1723468253984,-10000.0,0.00011,2]
[334681273,1723468253993,-3992.930337,0.00011,2]
[334681274,1723468254004,-151.0,0.00011,2]
[334681275,1723468254013,-10000.0,0.00011,2]
[334681276,1723468254023,-151.0,0.00011,2]
[334681277,1723468254032,-10000.0,0.00011,2]
[334681278,1723468254041,-151.0,0.00011,2]
[334681279,1723468254050,-10000.0,0.00011,2]
[334681280,1723468254060,-151.0,0.00011,2]
[334681281,1723468254071,-10000.0,0.00011,2]
[334681282,1723468254082,-151.0,0.00011,2]
[334681283,1723468254091,-151.0,0.00011,2]
[334681284,1723468254100,-151.0,0.00011,2]
[334681285,1723468254109,-154.755526,0.00011,2]
[334681286,1723468254119,-154.755526,0.00011,2]
[334681287,1723468254128,-154.755526,0.00011,2]
[334681288,1723468254137,-154.755526,0.00011,2]
[334681289,1723468254146,-154.755526,0.00011,2]
[334681290,1723468254159,-154.755526,0.00011,2]
[334681291,1723468254168,-154.755526,0.00011,2]
[334681292,1723468254178,-154.755526,0.00011,2]
[334681293,1723468254188,-235.638382,0.00011,2]
[334681294,1723468254197,-154.755526,0.00011,2]
[334681295,1723468254207,-744.0,0.00011,2]
[334681296,1723468254216,-235.638382,0.00011,2]
[334681297,1723468254226,-154.755526,0.00011,2]
[334681298,1723468254236,-235.638382,0.00011,2]
[334681299,1723468254246,-154.755526,0.00011,2]
[334681300,1723468254256,-235.638382,0.00011,2]
[334681301,1723468254369,-154.755526,0.00011,2]
[334681302,1723468254379,-235.638382,0.00011,2]
[334681303,1723468254392,-154.755526,0.00011,2]
[334681304,1723468254401,-154.755526,0.00011,2]
[334681305,1723468254412,-235.638382,0.00011,2]
[334681306,1723468254422,-235.638382,0.00011,2]
[334681307,1723468254432,-235.638382,0.00011,2]
[334681308,1723468254447,-235.638382,0.00011,2]
[334681309,1723468254457,-235.638382,0.00011,2]
[334681310,1723468254467,-235.638382,0.00011,2]
[334681311,1723468254479,-235.638382,0.00011,2]
[334681312,1723468254489,-289.563456,0.00011,2]
[334681313,1723468254499,-151.0,0.00011,2]
[334681314,1723468254508,-151.0,0.00011,2]
[334681315,1723468254518,-151.0,0.00011,2]
[334681316,1723468254528,-151.0,0.00011,2]
[334681317,1723468254538,-973.189028,0.00011,2]
[334681318,1723468254548,-151.0,0.00011,2]
[334681319,1723468254558,-973.189028,0.00011,2]
[334681320,1723468254568,-151.0,0.00011,2]
[334681321,1723468254578,-973.189028,0.00011,2]
[334681322,1723468254587,-973.189028,0.00011,2]
[334681323,1723468254598,-973.189028,0.00011,2]
[334681324,1723468254609,-973.189028,0.00011,2]
[334681325,1723468254619,-305.524046,0.00011,2]
[334681326,1723468254629,-305.524046,0.00011,2]
[334681327,1723468254639,-973.189028,0.00011,2]
[334681328,1723468254648,-305.524046,0.00011,2]
[334681329,1723468254663,-973.189028,0.00011,2]
[334681330,1723468254674,-305.524046,0.00011,2]
[334681331,1723468254684,-305.524046,0.00011,2]
[334681332,1723468254695,-973.189028,0.00011,2]
[334681333,1723468254704,-305.524046,0.00011,2]
[334681334,1723468254714,-973.189028,0.00011,2]
[334681335,1723468254725,-973.189028,0.00011,2]
[334681336,1723468254735,-973.189028,0.00011,2]
[334681337,1723468254745,-305.524046,0.00011,2]
[334681338,1723468254756,-305.524046,0.00011,2]
[334681339,1723468254767,-305.524046,0.00011,2]
[334681340,1723468254777,-305.524046,0.00011,2]
[334681341,1723468254787,-305.524046,0.00011,2]
[334681342,1723468254798,-305.524046,0.00011,2]
[334681343,1723468254808,-348.495032,0.00011,2]
[334681344,1723468254818,-348.495032,0.00011,2]
[334681345,1723468254828,-348.495032,0.00011,2]
[334681346,1723468254839,-348.495032,0.00011,2]
[334681347,1723468254849,-348.495032,0.00011,2]
[334681348,1723468254859,-348.495032,0.00011,2]
[334681349,1723468254870,-348.495032,0.00011,2]
[334681350,1723468254881,-348.495032,0.00011,2]
[334681351,1723468254891,-348.495032,0.00011,2]
[334681352,1723468254905,-348.495032,0.00011,2]
[334681353,1723468254916,-348.495032,0.00011,2]
[334681354,1723468254932,-348.495032,0.00011,2]
[334681355,1723468254941,-177.428509,0.00011,2]
[334681356,1723468254951,-177.428509,0.00011,2]
[334681357,1723468254962,-177.428509,0.00011,2]
[334681358,1723468254972,-177.428509,0.00011,2]
[334681359,1723468254981,-340.537801,0.00011,2]
[334681360,1723468254993,-177.428509,0.00011,2]
[334681361,1723468255003,-340.537801,0.00011,2]
[334681362,1723468255013,-177.428509,0.00011,2]
[334681363,1723468255023,-340.537801,0.00011,2]
[334681364,1723468255033,-177.428509,0.00011,2]
[334681365,1723468255043,-340.537801,0.00011,2]
[334681366,1723468255052,-340.537801,0.00011,2]
[334681367,1723468255062,-340.537801,0.00011,2]
[334681368,1723468255072,-177.428509,0.00011,2]
[334681369,1723468255082,-177.428509,0.00011,2]
[334681370,1723468255092,-177.428509,0.00011,2]
[334681371,1723468255102,-177.428509,0.00011,2]
[334681372,1723468255112,-177.428509,0.00011,2]
[334681373,1723468255122,-340.537801,0.00011,2]
[334681374,1723468255133,-177.428509,0.00011,2]
[334681375,1723468255144,-340.537801,0.00011,2]
[334681376,1723468255160,-177.428509,0.00011,2]
[334681377,1723468255169,-340.537801,0.00011,2]
[334681378,1723468255179,-340.537801,0.00011,2]
[334681379,1723468255189,-340.537801,0.00011,2]
[334681380,1723468255199,-3000.0,0.00011,2]
[334681381,1723468255208,-340.537801,0.00011,2]
[334681382,1723468255217,-151.0,0.00011,2]
[334681383,1723468255226,-187.658458,0.00011,2]
[334681384,1723468255236,-186.157054,0.00011,2]
[334681385,1723468255246,-186.157054,0.00011,2]
[334681386,1723468255255,-186.157054,0.00011,2]
[334681387,1723468255265,-186.157054,0.00011,2]
[334681388,1723468255275,-186.157054,0.00011,2]
[334681389,1723468255284,-170.370745,0.00011,2]
[334681390,1723468255293,-186.157054,0.00011,2]
[334681391,1723468255303,-170.370745,0.00011,2]
[334681392,1723468255312,-170.370745,0.00011,2]
[334681393,1723468255321,-170.370745,0.00011,2]
[334681394,1723468255331,-3713.6898,0.00011,2]
[334681395,1723468255340,-3713.6898,0.00011,2]
[334681396,1723468255350,-170.370745,0.00011,2]
[334681397,1723468255359,-151.0,0.00011,2]
[334681398,1723468255369,-3713.6898,0.00011,2]
[334681399,1723468255379,-170.370745,0.00011,2]
[334681400,1723468255388,-151.0,0.00011,2]
[334681401,1723468255397,-3713.6898,0.00011,2]
[334681402,1723468255418,-170.370745,0.00011,2]
[334681403,1723468255427,-151.0,0.00011,2]
[334681404,1723468255438,-186.157054,0.00011,2]
[334681405,1723468255449,-3713.6898,0.00011,2]
[334681406,1723468255458,-186.157054,0.00011,2]
[334681407,1723468255467,-151.0,0.00011,2]
[334681408,1723468255477,-3713.6898,0.00011,2]
[334681409,1723468255487,-186.157054,0.00011,2]
[334681410,1723468255496,-151.0,0.00011,2]
[334681411,1723468255506,-3713.6898,0.00011,2]
[334681412,1723468255517,-151.0,0.00011,2]
[334681413,1723468255527,-151.0,0.00011,2]
[334681414,1723468255536,-186.157054,0.00011,2]
[334681415,1723468255545,-151.0,0.00011,2]
[334681416,1723468255554,-170.370745,0.00011,2]
[334681417,1723468255563,-280.669254,0.00011,2]
[334681418,1723468255573,-186.157054,0.00011,2]
[334681419,1723468255582,-151.0,0.00011,2]
[334681420,1723468255592,-170.370745,0.00011,2]
[334681421,1723468255602,-186.157054,0.00011,2]
[334681422,1723468255611,-3713.6898,0.00011,2]
[334681423,1723468255620,-151.0,0.00011,2]
[334681424,1723468255630,-170.370745,0.00011,2]
[334681425,1723468255639,-3713.6898,0.00011,2]
[334681426,1723468255648,-230.488098,0.00011,2]
[334681427,1723468255665,-170.370745,0.00011,2]
[334681428,1723468255675,-3713.6898,0.00011,2]
[334681429,1723468255684,-170.370745,0.00011,2]
[334681430,1723468255693,-3713.6898,0.00011,2]
[334681431,1723468255703,-170.370745,0.00011,2]
[334681432,1723468255713,-3713.6898,0.00011,2]
[334681433,1723468255722,-170.370745,0.00011,2]
[334681434,1723468255731,-3713.6898,0.00011,2]
[334681435,1723468255740,-3713.6898,0.00011,2]
[334681436,1723468255750,-150.0,0.00011,2]
[334681437,1723468255759,-151.0,0.00011,2]
[334681438,1723468255769,-151.0,0.00011,2]
[334681439,1723468255778,-151.0,0.00011,2]
[334681440,1723468255788,-151.0,0.00011,2]
[334681441,1723468255797,-151.0,0.00011,2]
[334681442,1723468255807,-268.301681,0.00011,2]
[334681443,1723468255816,-3917.23,0.00011,2]
[334681444,1723468255825,-151.0,0.00011,2]
[334681445,1723468255835,-151.0,0.00011,2]
[334681446,1723468255845,-151.0,0.00011,2]
[334681447,1723468255854,-151.0,0.00011,2]
[334681448,1723468255864,-151.0,0.00011,2]
[334681449,1723468255874,-151.0,0.00011,2]
[334681450,1723468255883,-151.0,0.00011,2]
[334681451,1723468255894,-151.0,0.00011,2]
[334681452,1723468255908,-151.0,0.00011,2]
[334681453,1723468255917,-151.0,0.00011,2]
[334681454,1723468255926,-151.0,0.00011,2]
[334681455,1723468255935,-151.0,0.00011,2]
[334681456,1723468255945,-151.0,0.00011,2]
[334681457,1723468255955,-151.0,0.00011,2]
[334681458,1723468255964,-151.0,0.00011,2]
[334681459,1723468255974,-151.0,0.00011,2]
[334681460,1723468255983,-151.0,0.00011,2]
[334681461,1723468255992,-151.0,0.00011,2]
[334681462,1723468256001,-151.0,0.00011,2]
[334681463,1723468256011,-151.0,0.00011,2]
[334681464,1723468256122,-151.0,0.00011,2]
[334681465,1723468256132,-151.0,0.00011,2]
[334681466,1723468256143,-151.0,0.00011,2]
[334681467,1723468256156,-346.716169,0.00011,2]
[334681468,1723468256166,-151.0,0.00011,2]
[334681469,1723468256175,-346.716169,0.00011,2]
[334681470,1723468256184,-346.716169,0.00011,2]
[334681471,1723468256194,-151.0,0.00011,2]
[334681472,1723468256203,-346.716169,0.00011,2]
[334681473,1723468256213,-151.0,0.00011,2]
[334681474,1723468256223,-346.716169,0.00011,2]
[334681475,1723468256233,-151.0,0.00011,2]
[334681476,1723468256242,-346.716169,0.00011,2]
[334681477,1723468256251,-275.909087,0.00011,2]
[334681478,1723468256260,-346.716169,0.00011,2]
[334681479,1723468256269,-346.716169,0.00011,2]
[334681480,1723468256279,-346.716169,0.00011,2]
[334681481,1723468256289,-346.716169,0.00011,2]
[334681482,1723468256299,-346.716169,0.00011,2]
[334681483,1723468256308,-346.716169,0.00011,2]
[334681484,1723468256317,-346.716169,0.00011,2]
[334681485,1723468256326,-346.716169,0.00011,2]
[334681486,1723468256336,-3483.689978,0.00011,2]
[334681487,1723468256346,-3483.689978,0.00011,2]
[334681488,1723468256356,-3483.689978,0.00011,2]
[334681489,1723468256365,-3483.689978,0.00011,2]
[334681490,1723468256374,-3483.689978,0.00011,2]
[334681491,1723468256384,-3483.689978,0.00011,2]
[334681492,1723468256394,-3483.689978,0.00011,2]
[334681493,1723468256405,-3483.689978,0.00011,2]
[334681494,1723468256414,-3483.689978,0.00011,2]
[334681495,1723468256424,-3483.689978,0.00011,2]
[334681496,1723468256438,-3483.689978,0.00011,2]
[334681497,1723468256447,-3483.689978,0.00011,2]
[334681498,1723468256456,-3483.689978,0.00011,2]
[334681499,1723468256466,-3483.689978,0.00011,2]
[334681500,1723468256476,-457.256867,0.00011,2]
[334681501,1723468256487,-457.256867,0.00011,2]
[334681502,1723468256497,-457.256867,0.00011,2]
[334681503,1723468256507,-457.256867,0.00011,2]
[334681504,1723468256519,-457.256867,0.00011,2]
[334681505,1723468256528,-457.256867,0.00011,2]
[334681506,1723468256539,-457.256867,0.00011,2]
[334681507,1723468256549,-457.256867,0.00011,2]
[334681508,1723468256558,-457.256867,0.00011,2]
[334681509,1723468256567,-457.256867,0.00011,2]
[334681510,1723468256577,-457.256867,0.00011,2]
[334681511,1723468256587,-457.256867,0.00011,2]
[334681512,1723468256596,-457.256867,0.00011,2]
[334681513,1723468256605,-457.256867,0.00011,2]
[334681514,1723468256615,-2789.681051,0.00011,2]
[334681515,1723468256624,-2789.681051,0.00011,2]
[334681516,1723468256634,-2789.681051,0.00011,2]
[334681517,1723468256643,-2789.681051,0.00011,2]
[334681518,1723468256655,-2789.681051,0.00011,2]
[334681519,1723468256665,-2789.681051,0.00011,2]
[334681520,1723468256681,-2789.681051,0.00011,2]
[334681521,1723468256690,-2789.681051,0.00011,2]
[334681523,1723468256700,-2789.681051,0.00011,2]
[334681524,1723468256709,-2789.681051,0.00011,2]
[334681525,1723468256718,-2789.681051,0.00011,2]
[334681526,1723468256728,-2789.681051,0.00011,2]
[334681527,1723468256738,-2789.681051,0.00011,2]
[334681528,1723468256747,-2789.681051,0.00011,2]
[334681529,1723468256756,-151.0,0.00011,2]
[334681530,1723468256766,-151.0,0.00011,2]
[334681531,1723468256775,-151.0,0.00011,2]
[334681532,1723468256785,-279.274672,0.00011,2]
[334681533,1723468256795,-155.06821482,0.00011012,2]
[334681534,1723468256805,-162.89676018,0.00011012,2]
[334681535,1723468256814,-428.0,0.0001102,2]
[334681536,1723468256824,-530.92,0.00011041,2]
[334681537,1723468256833,-712.92,0.00011041,2]
[334681538,1723468256843,-712.98,0.00011041,2]
[334681539,1723468256852,-15481.61989988,0.00011105,2]
[334681540,1723468256861,-19121.92867061,0.00011105,2]
[334681541,1723468256871,-3978.80981577,0.00011105,2]
[334681542,1723468256881,-3081.5129697,0.00011105,2]
[334681543,1723468256891,-2341.29720318,0.00011105,2]
[334681544,1723468256900,-155.0,0.00011105,2]
[334681545,1723468256912,-188.58901084,0.00011105,2]
[334681546,1723468256922,-155.0,0.00011105,2]
[334681547,1723468256931,-155.10259214,0.00011105,2]
[334681548,1723468256941,-1275.34900939,0.00011105,2]
[334681549,1723468256951,-155.0,0.00011105,2]
[334681550,1723468256961,-403.2579673,0.00011105,2]
[334681551,1723468256970,-309.22609826,0.00011105,2]
[334681552,1723468256980,-200.78588965,0.00011105,2]
[334681553,1723468256989,-3120.74513863,0.00011105,2]
[334681554,1723468256998,-2210.9421767,0.00011105,2]
[334681555,1723468257007,-2840.85553108,0.00011105,2]
[334681556,1723468257017,-476.83882625,0.00011105,2]
[334681557,1723468257027,-7000.0,0.00011105,2]
[334681558,1723468257036,-365.68547453,0.00011105,2]
[334681559,1723468257046,-236.11042651,0.00011105,2]
[334681560,1723468257056,-293.95644233,0.00011105,2]
[334681561,1723468257065,-156.70685495,0.00011105,2]
[334681562,1723468257074,-1297.9617252,0.00011105,2]
[334681563,1723468257084,-9902.74929995,0.00011105,2]
[334681564,1723468257093,-2145.72746528,0.00011105,2]
[334681565,1723468257102,-5851.02790323,0.00011105,2]
[334681566,1723468257111,-3031.69345987,0.00011105,2]
[334681567,1723468257121,-892.62032859,0.00011105,2]
[334681568,1723468257130,-686.9571417,0.00011105,2]
[334681569,1723468257139,-1739.40578979,0.00011105,2]
[334681570,1723468257149,-440.04082171,0.00011105,2]
[334681571,1723468257162,-719.82594028,0.00011105,2]
[334681572,1723468257172,-1074.4498846,0.00011105,2]
[334681573,1723468257182,-1138.87080337,0.00011105,2]
[334681574,1723468257192,-164.36391745,0.00011105,2]
[334681575,1723468257201,-723.34201869,0.00011105,2]
[334681576,1723468257211,-298.58351504,0.00011105,2]
[334681577,1723468257220,-197.12017333,0.00011105,2]
[334681578,1723468257230,-921.3480316,0.00011105,2]
[334681579,1723468257240,-200.1186511,0.00011105,2]
[334681580,1723468257249,-600.60859268,0.00011105,2]
[334681581,1723468257258,-165.49338695,0.00011105,2]
[334681582,1723468257268,-155.0,0.00011105,2]
[334681583,1723468257277,-347.66347305,0.00011105,2]
[334681584,1723468257287,-155.04259925,0.00011105,2]
[334681585,1723468257296,-485.08340827,0.00011105,2]
[334681586,1723468257306,-216.70688048,0.00011105,2]
[334681587,1723468257316,-520.01591584,0.00011105,2]
[334681588,1723468257326,-202.88575837,0.00011105,2]
[334681589,1723468257335,-962.12871332,0.00011105,2]
[334681590,1723468257345,-155.09670443,0.00011105,2]
[334681591,1723468257354,-155.0,0.00011105,2]
[334681592,1723468257362,-155.06418543,0.00011105,2]
[334681593,1723468257372,-155.0,0.00011105,2]
[334681594,1723468257382,-349.15124606,0.00011105,2]
[334681595,1723468257392,-218.86415663,0.00011105,2]
[334681596,1723468257401,-155.0,0.00011105,2]
[334681597,1723468257411,-213.66476891,0.00011105,2]
[334681598,1723468257420,-174.28034347,0.00011105,2]
[334681599,1723468257430,-265.37710214,0.00011105,2]
[334681600,1723468257442,-155.08969027,0.00011105,2]
[334681601,1723468257452,-400.0,0.00011105,2]
[334681602,1723468257462,-155.0,0.00011105,2]
[334681603,1723468257472,-211.04152423,0.00011105,2]
[334681604,1723468257482,-155.0,0.00011105,2]
[334681605,1723468257491,-159.35108356,0.00011105,2]
[334681606,1723468257501,-155.0,0.00011105,2]
[334681607,1723468257511,-367.78963166,0.00011105,2]
[334681608,1723468257520,-245.94486059,0.00011105,2]
[334681609,1723468257530,-298.38210206,0.00011105,2]
[334681610,1723468257540,-196.7661349,0.00011105,2]
[334681611,1723468257550,-155.0,0.00011105,2]
[334681612,1723468257559,-180.29578171,0.00011105,2]
[334681613,1723468257569,-206.72516919,0.00011105,2]
[334681614,1723468257578,-155.0,0.00011105,2]
[334681615,1723468257588,-528.80773361,0.00011105,2]
[334681616,1723468257698,-155.0,0.00011105,2]
[334681617,1723468257708,-155.04002882,0.00011105,2]
[334681618,1723468257717,-155.0,0.00011105,2]
[334681619,1723468257726,-199.02217555,0.00011105,2]
[334681620,1723468257736,-159.57347377,0.00011105,2]
[334681621,1723468257745,-380.24774441,0.00011105,2]
[334681622,1723468257755,-160.76915209,0.00011105,2]
[334681623,1723468257765,-155.0,0.00011105,2]
[334681624,1723468257775,-270.51980682,0.00011105,2]
[334681625,1723468257784,-199.88180537,0.00011105,2]
[334681626,1723468257793,-155.0,0.00011105,2]
[334681627,1723468257803,-224.95126688,0.00011105,2]
[334681628,1723468257812,-155.05008941,0.00011105,2]
[334681629,1723468257821,-249.03486688,0.00011105,2]
[334681630,1723468257830,-155.0,0.00011105,2]
[334681631,1723468257840,-257.87284905,0.00011105,2]
[334681632,1723468257850,-155.31680199,0.00011105,2]
[334681633,1723468257859,-255.13733329,0.00011105,2]
[334681634,1723468257868,-267.42973883,0.00011105,2]
[334681635,1723468257877,-189.8455996,0.00011105,2]
[334681636,1723468257887,-299.54284126,0.00011105,2]
[334681637,1723468257896,-155.24661927,0.00011105,2]
[334681638,1723468257908,-156.26245474,0.00011105,2]
[334681639,1723468257917,-357.41882144,0.00011105,2]
[334681640,1723468257926,-155.0,0.00011105,2]
[334681641,1723468257935,-212.15411262,0.00011105,2]
[334681642,1723468257945,-177.78870693,0.00011105,2]
[334681643,1723468257954,-200.0,0.00011105,2]
[334681644,1723468257963,-155.0,0.00011105,2]
[334681645,1723468257973,-330.12618987,0.00011105,2]
[334681646,1723468257982,-155.14260753,0.00011105,2]
[334681647,1723468257992,-155.06695618,0.00011105,2]
[334681648,1723468258001,-493.49814527,0.00011105,2]
[334681649,1723468258010,-594.9326829,0.00011105,2]
[334681650,1723468258019,-155.0,0.00011105,2]
[334681651,1723468258028,-313.69504062,0.00011105,2]
[334681652,1723468258038,-155.0,0.00011105,2]
[334681653,1723468258047,-364.10585476,0.00011105,2]
[334681654,1723468258056,-155.0,0.00011105,2]
[334681655,1723468258066,-292.14278454,0.00011105,2]
[334681656,1723468258075,-471.41421915,0.00011105,2]
[334681657,1723468258085,-267.58332672,0.00011105,2]
[334681658,1723468258094,-200.31313568,0.00011105,2]
[334681659,1723468258103,-432.43627128,0.00011105,2]
[334681660,1723468258112,-211.71844896,0.00011105,2]
[334681661,1723468258121,-1052.65474918,0.00011105,2]
[334681662,1723468258130,-288.71666788,0.00011105,2]
[334681663,1723468258139,-3409.65623385,0.00011105,2]
[334681664,1723468258148,-13603.52104816,0.00011105,2]
[334681665,1723468258160,-155.10962615,0.00011105,2]
[334681666,1723468258169,-155.48030538,0.00011105,2]
[334681667,1723468258178,-156.90752091,0.00011105,2]
[334681668,1723468258188,-155.70869747,0.00011105,2]
[334681669,1723468258197,-155.10684209,0.00011105,2]
[334681670,1723468258207,-243.67318253,0.00011105,2]
[334681671,1723468258216,-650.89584616,0.00011105,2]
[334681672,1723468258226,-455.34669311,0.00011105,2]
[334681673,1723468258235,-296.08588917,0.00011105,2]
[334681674,1723468258244,-155.0,0.00011105,2]
[334681675,1723468258254,-155.43172698,0.00011105,2]
[334681676,1723468258263,-155.32708226,0.00011105,2]
[334681677,1723468258273,-155.0693428,0.00011105,2]
[334681678,1723468258283,-5002.5198915,0.00011105,2]
[334681679,1723468258295,-1041.95657501,0.00011105,2]
[334681680,1723468258319,-275.42639677,0.00011105,2]
[334681681,1723468258343,-155.0,0.00011105,2]
[334681682,1723468258366,-1962.53381026,0.00011105,2]
[334681683,1723468258387,-155.16901874,0.00011105,2]
[334681684,1723468258414,-309.69952861,0.00011105,2]
[334681685,1723468258453,-155.22186932,0.00011105,2]
[334681686,1723468258481,-155.09606729,0.00011105,2]
[334681687,1723468258512,-1725.0,0.00011105,2]
[334681688,1723468258542,-628.64037232,0.00011105,2]
[334681689,1723468258568,-181.90532957,0.00011105,2]
[334681690,1723468258587,-155.1137372,0.00011105,2]
[334681691,1723468258604,-2836.06303036,0.00011105,2]
[334681692,1723468258617,-522.26105292,0.00011105,2]
[334681693,1723468258635,-536.50000938,0.00011105,2]
[334681694,1723468258657,-155.0,0.00011105,2]
[334681695,1723468258678,-155.0,0.00011105,2]
[334681696,1723468258692,-162.24504374,0.00011105,2]
[334681697,1723468258710,-204.49792903,0.00011105,2]
[334681698,1723468258725,-155.0,0.00011105,2]
[334681699,1723468258742,-1500.0,0.00011105,2]
[334681700,1723468258755,-402.15875772,0.00011105,2]
[334681701,1723468258772,-159.26585973,0.00011105,2]
[334681702,1723468258786,-5403.79429818,0.00011105,2]
[334681703,1723468258801,-1634.40285914,0.00011105,2]
[334681704,1723468258815,-211.0133722,0.00011105,2]
[334681705,1723468258830,-653.64489815,0.00011105,2]
[334681706,1723468258845,-155.37212419,0.00011105,2]
[334681707,1723468258859,-155.14222559,0.00011105,2]
[334681708,1723468258874,-9287.65584329,0.00011105,2]
[334681709,1723468258888,-155.19385311,0.00011105,2]
[334681710,1723468258902,-155.1208509,0.00011105,2]
[334681711,1723468258918,-155.0,0.00011105,2]
[334681712,1723468258933,-277.46089729,0.00011105,2]
[334681713,1723468258947,-179.4461029,0.00011105,2]
[334681714,1723468258962,-155.0,0.00011105,2]
[334681715,1723468258977,-193.140682,0.00011105,2]
[334681716,1723468258991,-186.30162569,0.00011105,2]
[334681717,1723468259006,-264.14885246,0.00011105,2]
[334681718,1723468259020,-155.13912919,0.00011105,2]
[334681719,1723468259035,-159.62561551,0.00011105,2]
[334681720,1723468259049,-224.61895507,0.00011105,2]
[334681721,1723468259067,-166.51290033,0.00011105,2]
[334681722,1723468259080,-200.63429968,0.00011105,2]
[334681723,1723468259095,-175.54705226,0.00011105,2]
[334681724,1723468259109,-162.27074712,0.00011105,2]
[334681725,1723468259124,-198.56557802,0.00011105,2]
[334681726,1723468259138,-203.46899415,0.00011105,2]
[334681727,1723468259155,-419.10841212,0.00011105,2]
[334681728,1723468259172,-155.12695952,0.00011105,2]
[334681729,1723468259187,-163.83601866,0.00011105,2]
[334681730,1723468259202,-169.71524734,0.00011105,2]
[334681731,1723468259216,-186.66818657,0.00011105,2]
[334681732,1723468259231,-160.34141161,0.00011105,2]
[334681733,1723468259246,-219.41596699,0.00011105,2]
[334681734,1723468259261,-170.2414793,0.00011105,2]
[334681735,1723468259276,-202.81124493,0.00011105,2]
[334681736,1723468259291,-155.0,0.00011105,2]
[334681737,1723468259306,-160.4253897,0.00011105,2]
[334681738,1723468259321,-303.60968239,0.00011105,2]
[334681739,1723468259337,-160.50873349,0.00011105,2]
[334681740,1723468259352,-197.18240402,0.00011105,2]
[334681741,1723468259367,-155.18449269,0.00011105,2]
[334681742,1723468259383,-155.0,0.00011105,2]
[334681743,1723468259398,-155.0,0.00011105,2]
[334681744,1723468259418,-155.0,0.00011105,2]
[334681745,1723468259435,-155.93116234,0.00011105,2]
[334681746,1723468259451,-155.0,0.00011105,2]
[334681747,1723468259467,-183.61453533,0.00011105,2]
[334681748,1723468259485,-155.81466258,0.00011105,2]
[334681749,1723468259501,-155.0,0.00011105,2]
[334681750,1723468259519,-359.41537774,0.00011105,2]
[334681751,1723468259534,-159.07501294,0.00011105,2]
[334681752,1723468259550,-294.99151167,0.00011105,2]
[334681753,1723468259716,-2111.83717658,0.00011105,2]
[334681754,1723468259730,-2502.58566001,0.00011105,2]
[334681755,1723468259741,-253.22465449,0.00011105,2]
[334681756,1723468259752,-203.88465685,0.00011105,2]
[334681757,1723468259764,-155.58730689,0.00011105,2]
[334681758,1723468259775,-157.23090782,0.00011105,2]
[334681759,1723468259785,-155.18387747,0.00011105,2]
[334681760,1723468259796,-155.0,0.00011105,2]
[334681761,1723468259807,-155.0,0.00011105,2]
[334681762,1723468259817,-200.55625256,0.00011105,2]
[334681763,1723468259828,-923.70907108,0.00011105,2]
[334681764,1723468259838,-155.0,0.00011105,2]
[334681765,1723468259849,-273.38175842,0.00011105,2]
[334681766,1723468259860,-966.5423,0.00011105,2]
[334681767,1723468259870,-151.0,0.00011105,2]
[334681768,1723468259881,-151.378985,0.00011105,2]